bitfinex/quotes_SOLUSD_20260221
["timestamp","ask_amount","ask_price","bid_price","bid_amount"]
[1771683532240,0.47992663,85.759,85.732,12.1201302]
[1771683532435,0.47992663,85.759,85.727,12.12077117]
[1771683534446,0.47992663,85.759,85.728,0.45587415]
[1771683536326,0.47992663,85.765,85.731,0.45587415]
[1771683538244,0.47992663,85.765,85.733,0.45587415]
[1771683539048,0.47992663,85.779,85.735,0.45587415]
[1771683539229,0.47992663,85.779,85.741,0.45587415]
[1771683540153,11.65800088,85.778,85.743,0.45587415]
[1771683540338,0.47992663,85.777,85.743,0.45587415]
[1771683542046,0.47992663,85.769,85.743,0.45587415]
[1771683542246,0.47992663,85.769,85.744,11.66262362]
[1771683544939,0.47992663,85.759,85.733,12.11999415]
[1771683551657,0.45616368,85.758,85.728,11.66477138]
[1771683551958,0.45616368,85.749,85.72,0.45229001]
[1771683553744,0.45616368,85.76,85.722,0.45229001]
[1771683554055,0.45616368,85.76,85.731,0.45229001]
[1771683557260,0.45616368,85.76,85.732,11.66425605]
[1771683557463,0.45616368,85.76,85.733,0.45229001]
[1771683559257,0.45616368,85.76,85.735,0.45229001]
[1771683561749,0.45616368,85.76,85.737,0.45229001]
[1771683568268,0.45616368,85.789,85.751,0.45229001]
[1771683568760,0.45616368,85.789,85.761,0.45229001]
[1771683568962,0.45616368,85.799,85.771,0.45229001]
[1771683571669,0.45616368,85.799,85.77,4.18355707]
[1771683571670,0.45616368,85.799,85.773,0.45229001]
[1771683572366,0.45616368,85.799,85.768,0.45229001]
[1771683573563,0.45616368,85.797,85.768,0.45229001]
[1771683573770,0.45616368,85.797,85.769,11.65922419]
[1771683575767,0.45616368,85.797,85.769,0.45229001]
[1771683591479,0.45616368,85.797,85.771,0.49967062]
[1771683594581,0.49376322,85.812,85.771,0.49967062]
[1771683594883,0.49376322,85.819,85.791,0.49967062]
[1771683596486,0.49376322,85.828,85.801,0.49967062]
[1771683597585,0.49376322,85.819,85.783,0.49967062]
[1771683597884,0.49376322,85.809,85.784,0.49967062]
[1771683599188,0.49376322,85.809,85.786,0.49967062]
[1771683601487,0.49376322,85.809,85.787,11.65677783]
[1771683602289,0.49376322,85.809,85.787,12.15644845]
[1771683603891,0.49376322,85.809,85.788,0.49967062]
[1771683604983,0.49376322,85.809,85.782,0.49967062]
[1771683605291,0.49376322,85.799,85.777,0.49967062]
[1771683606591,0.49376322,85.799,85.779,0.49967062]
[1771683607096,11.65387021,85.809,85.781,0.49967062]
[1771683607097,0.49376322,85.809,85.781,0.49967062]
[1771683608387,0.49376322,85.809,85.791,0.45566085]
[1771683611091,0.49691044,85.816,85.791,0.45566085]
[1771683612593,0.49691044,85.816,85.793,0.4915085]
[1771683615498,0.49691044,85.816,85.795,0.4915085]
[1771683617981,0.49691044,85.829,85.797,0.4915085]
[1771683618194,0.49691044,85.829,85.796,11.65555503]
[1771683618195,0.49691044,85.829,85.801,0.4915085]
[1771683624001,0.1,85.84,85.801,0.4915085]
[1771683624217,11.63785635,85.88,85.76,15.77584329]
[1771683624218,11.63785635,85.88,85.831,0.4915085]
[1771683624502,0.49691044,85.879,85.842,0.4915085]
[1771683626404,0.49691044,85.879,85.844,0.4915085]
[1771683627191,0.49691044,85.879,85.851,0.4915085]
[1771683627508,0.1,85.89,85.862,0.4915085]
[1771683628302,0.1,85.89,85.841,58.24685034]
[1771683628303,0.1,85.89,85.871,0.4915085]
[1771683630607,0.1,85.89,85.873,0.4915085]
[1771683631003,0.59691044,85.89,85.863,29.11615014]
[1771683631203,0.49691044,85.889,85.863,29.11615014]
[1771683632794,0.1,85.89,85.863,29.11615014]
[1771683632795,0.1,85.89,85.87,4.17634095]
[1771683633197,0.1,85.89,85.871,0.16756322]
[1771683634004,0.1,85.89,85.873,0.16756322]
[1771683635111,0.1,85.89,85.874,11.6449682]
[1771683636007,0.1,85.89,85.875,0.16756322]
[1771683637312,0.1,85.89,85.876,11.644697]
[1771683638209,0.1,85.89,85.871,11.64537503]
[1771683638413,0.1,85.89,85.872,0.16756322]
[1771683638613,0.1,85.89,85.88,4.17634095]
[1771683640217,0.1,85.9,85.881,0.47663273]
[1771683640420,4.27634095,85.92,85.84,15.92191692]
[1771683640421,0.1,85.92,85.891,0.47663273]
[1771683640617,0.1,85.92,85.9,4.17634095]
[1771683640935,0.1,85.92,85.901,0.47663273]
[1771683642300,0.55676236,85.92,85.901,0.47663273]
[1771683643619,0.45676236,85.918,85.88,4.17634095]
[1771683644007,0.45676236,85.918,85.881,0.47663273]
[1771683646200,0.45676236,85.916,85.882,11.64388346]
[1771683646421,0.45676236,85.916,85.883,0.47663273]
[1771683647715,0.1,85.92,85.901,0.47663273]
[1771683649822,0.1,85.92,85.91,4.17634095]
[1771683650225,0.45676236,85.931,85.91,4.17634095]
[1771683650808,58.15836441,85.973,85.868,5.36086188]
[1771683650809,6.53951447,85.98,85.921,0.47663273]
[1771683651115,0.45676236,85.989,85.921,0.28432314]
[1771683651322,0.45676236,85.989,85.92,4.17634095]
[1771683651323,0.45676236,85.989,85.96,4.17634095]
[1771683651508,0.45676236,85.989,85.928,3.69383402]
[1771683651509,0.45676236,85.989,85.97,4.17634095]
[1771683652322,0.45676236,85.998,85.97,4.17634095]
[1771683654322,0.45676236,85.998,85.964,0.14769285]
[1771683654825,0.45676236,85.998,85.97,4.17634095]
[1771683655028,0.45676236,85.996,85.969,0.14769285]
[1771683656310,3.64614117,86.026,85.964,0.28432314]
[1771683656510,46.43968551,86.134,86.022,26.23366097]
[1771683656823,46.43968551,86.134,85.966,3.69383402]
[1771683656824,4.17634095,86.08,86.006,0.47663273]
[1771683657028,4.17634095,86.03,86.006,0.47663273]
[1771683657234,0.14216157,86.089,86.011,0.47663273]
[1771683657413,6.07494469,86.133,86.04,4.17634095]
[1771683657607,5.02634095,86.16,86.04,4.17634095]
[1771683657608,4.17634095,86.13,86.08,4.17634095]
[1771683657804,4.17634095,86.16,86.08,4.17634095]
[1771683658127,0.1149795,86.186,86.13,4.14718478]
[1771683658128,11.71780536,86.186,86.13,4.14718478]
[1771683658328,0.1149795,86.186,86.14,4.14718478]
[1771683658625,11.60294714,86.185,86.131,11.61022163]
[1771683658804,0.1149795,86.186,86.123,11.61120406]
[1771683659128,6.0648087,86.254,86.181,0.28432314]
[1771683659432,0.5,86.269,86.201,0.28432314]
[1771683659728,1.84591,86.28,86.204,3.69383402]
[1771683659942,11.59030586,86.279,86.23,11.07110927]
[1771683660141,11.58444764,86.323,86.27,11.07110927]
[1771683660307,0.5,86.319,86.221,0.28432314]
[1771683660509,0.5,86.319,86.201,11.60079349]
[1771683660510,0.5,86.326,86.201,40.60277722]
[1771683660818,11.07110927,86.31,86.241,0.28432314]
[1771683661011,28.95176819,86.351,86.28,11.07110927]
[1771683661211,11.58050768,86.352,86.29,11.07110927]
[1771683661212,11.07110927,86.33,86.29,11.07110927]
[1771683661421,11.07110927,86.32,86.28,11.07110927]
[1771683661613,0.5,86.289,86.203,187.49358165]
[1771683661813,11.07110927,86.28,86.206,3.69383402]
[1771683662011,11.07110927,86.27,86.207,5.36086188]
[1771683662231,11.59164937,86.269,86.23,11.07110927]
[1771683662429,11.59164937,86.269,86.21,11.07110927]
[1771683662430,0.5,86.268,86.21,11.07110927]
[1771683662728,0.5,86.268,86.23,11.07110927]
[1771683663132,11.59164937,86.269,86.203,199.09407585]
[1771683663133,11.07110927,86.26,86.203,199.09407585]
[1771683663322,0.5,86.259,86.21,11.07110927]
[1771683663832,11.07110927,86.27,86.21,11.07110927]
[1771683664132,11.07110927,86.26,86.211,0.47663273]
[1771683664522,11.07110927,86.26,86.203,187.49358165]
[1771683664523,11.07110927,86.25,86.203,187.49358165]
[1771683664916,3.69383402,86.256,86.203,187.49358165]
[1771683665116,11.07110927,86.25,86.203,187.49358165]
[1771683665429,11.07110927,86.25,86.204,11.74255134]
[1771683665732,0.45676236,86.249,86.203,187.49358165]
[1771683666446,0.45676236,86.247,86.203,187.49358165]
[1771683667116,0.45676236,86.239,86.203,187.49358165]
[1771683667314,0.45676236,86.229,86.203,112.74660602]
[1771683667514,0.45676236,86.219,86.172,0.47663273]
[1771683667833,0.47944631,86.236,86.19,11.52149777]
[1771683668141,0.47944631,86.236,86.19,0.4503885]
[1771683668435,0.47944631,86.229,86.19,11.86709811]
[1771683668642,0.47944631,86.229,86.179,0.4503885]
[1771683668822,11.59568176,86.239,86.181,0.4503885]
[1771683669020,40.58488618,86.239,86.2,11.07110927]
[1771683669320,0.47944631,86.299,86.235,0.4503885]
[1771683669524,0.47944631,86.299,86.251,0.4503885]
[1771683669724,0.47944631,86.289,86.24,11.07110927]
[1771683670115,0.47944631,86.289,86.25,11.07110927]
[1771683670316,0.47519425,86.287,86.25,11.07110927]
[1771683670523,0.47519425,86.287,86.24,11.07110927]
[1771683670717,0.47519425,86.287,86.23,11.07110927]
[1771683671015,0.47519425,86.287,86.24,11.07110927]
[1771683671324,0.47519425,86.287,86.25,11.07110927]
[1771683671716,0.47519425,86.287,86.224,0.0496115]
[1771683671918,0.47519425,86.287,86.25,11.07110927]
[1771683672118,40.56183941,86.288,86.23,11.07110927]
[1771683672119,0.47519425,86.276,86.23,11.07110927]
[1771683672324,0.47519425,86.274,86.21,0.0496115]
[1771683672517,0.47519425,86.274,86.23,11.07110927]
[1771683672930,0.47519425,86.274,86.24,11.07110927]
[1771683673133,11.58493495,86.319,86.261,0.46726132]
[1771683673442,28.96698591,86.306,86.27,11.07110927]
[1771683673940,28.96698591,86.306,86.25,0.46726132]
[1771683674134,28.96698591,86.306,86.26,11.07110927]
[1771683674344,28.96698591,86.306,86.25,0.46726132]
[1771683674548,11.07110927,86.29,86.24,11.07110927]
[1771683674838,11.07110927,86.28,86.222,0.46726132]
[1771683675055,0.46897036,86.279,86.222,0.46726132]
[1771683675219,0.46897036,86.269,86.23,11.07110927]
[1771683675427,0.46897036,86.269,86.222,0.46726132]
[1771683675735,0.46897036,86.259,86.212,0.46726132]
[1771683676231,0.46897036,86.239,86.2,11.07110927]
[1771683676532,11.07110927,86.24,86.2,11.07110927]
[1771683676533,40.58535679,86.238,86.2,11.07110927]
[1771683676842,0.46897036,86.237,86.2,0.46726132]
[1771683677057,0.46897036,86.237,86.19,11.07110927]
[1771683677357,0.46897036,86.237,86.18,12.11569782]
[1771683677646,0.46897036,86.229,86.18,11.53837059]
[1771683678026,0.46897036,86.229,86.19,11.07110927]
[1771683678225,0.46897036,86.229,86.181,0.46726132]
[1771683678728,40.58535679,86.238,86.19,11.07110927]
[1771683678729,0.46897036,86.227,86.19,11.07110927]
[1771683679030,0.46897036,86.227,86.182,0.46726132]
[1771683679231,0.46897036,86.227,86.19,11.07110927]
[1771683679540,0.46897036,86.227,86.182,0.46726132]
[1771683679838,11.59743,86.226,86.182,0.46726132]
[1771683680037,0.46897036,86.225,86.182,0.46726132]
[1771683680633,0.46897036,86.219,86.18,11.07110927]
[1771683680835,0.46897036,86.219,86.173,0.46726132]
[1771683681034,0.46897036,86.219,86.19,11.07110927]
[1771683681741,0.46897036,86.217,86.159,0.46726132]
[1771683681944,0.46897036,86.217,86.168,0.46726132]
[1771683682144,0.46897036,86.217,86.171,0.46726132]
[1771683682642,11.59850611,86.218,86.181,0.46726132]
[1771683682846,11.59850611,86.218,86.19,11.07110927]
[1771683683239,11.59850611,86.218,86.181,0.46726132]
[1771683683540,11.59850611,86.218,86.19,11.07110927]
[1771683683742,0.46897036,86.226,86.19,11.07110927]
[1771683683946,0.46897036,86.226,86.181,0.46726132]
[1771683684348,0.46897036,86.226,86.19,11.07110927]
[1771683684550,11.07110927,86.22,86.18,11.07110927]
[1771683684733,0.46897036,86.219,86.18,11.07110927]
[1771683685044,0.46897036,86.219,86.19,11.07110927]
[1771683685254,0.46897036,86.219,86.181,0.46726132]
[1771683685750,11.59850611,86.218,86.181,0.46726132]
[1771683685932,0.46897036,86.217,86.181,0.46726132]
[1771683686140,0.46897036,86.217,86.178,0.46726132]
[1771683686344,0.46897036,86.217,86.18,11.07110927]
[1771683686544,11.59850611,86.218,86.181,0.46726132]
[1771683686736,11.59850611,86.218,86.19,11.07110927]
[1771683686946,11.59850611,86.218,86.181,0.46726132]
[1771683687448,11.59707368,86.229,86.191,0.46726132]
[1771683687751,0.46897036,86.239,86.201,0.46726132]
[1771683688529,11.07110927,86.23,86.19,11.07110927]
[1771683688735,0.46897036,86.229,86.19,11.07110927]
[1771683689548,0.46897036,86.229,86.182,0.46726132]
[1771683689549,0.46897036,86.227,86.182,0.46726132]
[1771683689852,0.46897036,86.227,86.19,11.07110927]
[1771683690433,0.46897036,86.227,86.182,0.46726132]
[1771683690651,0.46897036,86.219,86.18,11.07110927]
[1771683691054,0.46897036,86.219,86.19,11.07110927]
[1771683691238,0.46897036,86.219,86.181,0.46726132]
[1771683692450,0.46897036,86.239,86.201,0.46726132]
[1771683692652,12.06465212,86.239,86.21,11.07110927]
[1771683692853,12.06465212,86.239,86.21,11.53837059]
[1771683693355,0.46897036,86.257,86.221,0.46726132]
[1771683693658,0.46897036,86.257,86.23,11.07110927]
[1771683693955,11.59318067,86.258,86.23,11.07110927]
[1771683694457,0.46897036,86.255,86.23,11.07110927]
[1771683694755,0.46897036,86.255,86.221,0.46726132]
[1771683695751,11.59366522,86.254,86.23,11.07110927]
[1771683696056,0.46897036,86.253,86.22,11.07110927]
[1771683696442,0.46897036,86.253,86.211,0.46726132]
[1771683696753,0.46897036,86.253,86.22,11.07110927]
[1771683697356,0.46897036,86.262,86.23,11.07110927]
[1771683697555,11.07110927,86.27,86.231,0.46726132]
[1771683697740,11.59178374,86.268,86.231,0.46726132]
[1771683698051,0.4944341,86.267,86.231,0.46726132]
[1771683698236,0.4944341,86.267,86.23,11.07110927]
[1771683699045,11.59178374,86.268,86.235,0.4790807]
[1771683699251,11.59178374,86.268,86.25,11.07110927]
[1771683699456,11.59178374,86.268,86.226,11.59730135]
[1771683699457,11.59178374,86.268,86.24,0.4790807]
[1771683699654,11.59178374,86.268,86.24,11.55018997]
[1771683699854,0.4944341,86.275,86.25,11.07110927]
[1771683700056,0.4944341,86.275,86.24,0.4790807]
[1771683700258,0.4944341,86.269,86.218,0.4790807]
[1771683700558,0.4944341,86.269,86.22,11.07110927]
[1771683700749,0.4944341,86.259,86.22,11.07110927]
[1771683701462,40.56748109,86.276,86.24,11.07110927]
[1771683701463,0.4944341,86.275,86.24,11.07110927]
[1771683701762,11.59097758,86.274,86.241,11.59541285]
[1771683701943,0.4944341,86.291,86.26,11.55018997]
[1771683702153,0.4944341,86.289,86.25,11.07110927]
[1771683702539,0.4944341,86.289,86.243,0.4790807]
[1771683702540,0.4944341,86.279,86.243,0.4790807]
[1771683702938,0.4944341,86.279,86.25,11.07110927]
[1771683703156,0.4944341,86.279,86.243,0.4790807]
[1771683703365,0.4944341,86.279,86.24,22.66654096]
[1771683703861,0.4944341,86.277,86.25,11.07110927]
[1771683705149,0.4944341,86.277,86.24,11.07110927]
[1771683705548,40.56654071,86.278,86.23,11.07110927]
[1771683705549,0.4944341,86.269,86.23,11.07110927]
[1771683705955,0.4944341,86.267,86.24,11.07110927]
[1771683707663,0.4944341,86.318,86.26,11.07110927]
[1771683707864,0.2649795,86.358,86.242,0.28432314]
[1771683707865,0.4944341,86.307,86.28,11.07110927]
[1771683708057,11.58359299,86.329,86.29,11.07110927]
[1771683708058,0.4944341,86.318,86.29,11.07110927]
[1771683708355,0.4944341,86.318,86.3,11.07110927]
[1771683708560,0.4944341,86.328,86.3,11.07110927]
[1771683708848,0.1,86.33,86.31,11.07110927]
[1771683709161,0.2649795,86.358,86.321,0.4790807]
[1771683709368,0.5,86.453,86.351,0.28432314]
[1771683709557,0.5,86.451,86.42,11.07110927]
[1771683709757,4.85736775,86.45,86.408,11.57290458]
[1771683709969,52.22,86.567,86.44,11.07110927]
[1771683710265,28.93835951,86.576,86.463,3.69383402]
[1771683710670,28.93835951,86.576,86.441,49.35913433]
[1771683710671,0.5,86.568,86.5,11.07110927]
[1771683710969,0.5,86.568,86.46,11.07110927]
[1771683710970,0.5,86.539,86.463,5.36086188]
[1771683711167,11.5516126,86.568,86.511,0.28432314]
[1771683711345,11.07110927,86.55,86.511,0.4790807]
[1771683711551,40.43064411,86.568,86.511,0.4790807]
[1771683711765,0.4944341,86.536,86.47,11.56470452]
[1771683711968,0.4944341,86.549,86.501,0.28432314]
[1771683712267,0.4944341,86.568,86.487,5.64518502]
[1771683712469,11.54727153,86.601,86.505,0.28432314]
[1771683712662,11.54776828,86.597,86.521,0.4790807]
[1771683712850,11.54856363,86.591,86.531,0.4790807]
[1771683713051,57.70516375,86.648,86.531,0.4790807]
[1771683713373,57.2396656,86.64,86.531,0.4790807]
[1771683713668,11.5516126,86.568,86.531,0.4790807]
[1771683713966,11.07110927,86.54,86.47,11.07110927]
[1771683714155,0.28432314,86.554,86.461,11.56590832]
[1771683714353,0.28432314,86.554,86.4,11.07110927]
[1771683714354,11.07110927,86.49,86.402,0.4790807]
[1771683714553,0.4944341,86.469,86.43,11.07110927]
[1771683714967,179.04999537,86.568,86.401,40.5087904]
[1771683714968,0.1,86.66,86.464,0.4790807]
[1771683715171,69.16985483,86.743,86.463,3.69383402]
[1771683715172,11.52784044,86.747,86.654,0.4790807]
[1771683715369,0.5,86.699,86.612,6.03727389]
[1771683715548,0.5,86.659,86.612,6.03727389]
[1771683715753,0.5,86.679,86.63,11.07110927]
[1771683715957,0.5,86.649,86.581,0.28432314]
[1771683716154,0.5,86.639,86.59,11.07110927]
[1771683716354,0.5,86.649,86.543,40.44232346]
[1771683716568,0.5,86.639,86.59,11.07110927]
[1771683716966,0.5,86.629,86.58,11.07110927]
[1771683717149,0.5,86.629,86.6,11.07110927]
[1771683717356,0.5,86.674,86.601,0.28432314]
[1771683717551,0.5,86.687,86.64,11.07110927]
[1771683717768,0.5,86.687,86.66,11.07110927]
[1771683718071,0.7649795,86.701,86.66,11.07110927]
[1771683718367,11.53402537,86.7,86.66,11.07110927]
[1771683718569,0.5,86.699,86.66,11.07110927]
[1771683718753,11.53402537,86.7,86.66,11.07110927]
[1771683718959,11.53402537,86.7,86.643,0.4790807]
[1771683719159,11.53402537,86.7,86.64,11.54199465]
[1771683719160,0.2649795,86.701,86.641,0.4790807]
[1771683719371,0.2649795,86.701,86.66,11.07110927]
[1771683719975,0.2649795,86.701,86.66,10.9620691]
[1771683720162,0.2649795,86.701,86.65,10.9620691]
[1771683720364,0.2649795,86.701,86.661,0.4790807]
[1771683720679,0.2649795,86.701,86.671,0.4790807]
[1771683720888,11.52948347,86.735,86.681,0.4790807]
[1771683721184,0.4944341,86.734,86.681,0.4790807]
[1771683721352,0.4944341,86.734,86.64,10.9620691]
[1771683721353,0.4944341,86.744,86.7,10.9620691]
[1771683721553,15.81394509,86.784,86.683,0.4790807]
[1771683721554,0.4944341,86.729,86.683,0.4790807]
[1771683721756,0.4944341,86.719,86.67,11.4411498]
[1771683721955,11.53030163,86.728,86.637,3.69383402]
[1771683721956,11.53030163,86.728,86.671,0.4790807]
[1771683722172,57.62501584,86.768,86.637,3.69383402]
[1771683722173,11.52904975,86.738,86.681,0.4790807]
[1771683722378,0.4944341,86.729,86.681,0.4790807]
[1771683722770,0.4944341,86.729,86.653,0.4790807]
[1771683722970,0.4944341,86.737,86.69,10.9620691]
[1771683723177,0.4944341,86.737,86.691,0.4790807]
[1771683723362,10.9620691,86.73,86.691,0.4790807]
[1771683723559,0.4944341,86.719,86.675,0.4790807]
[1771683723983,0.4944341,86.719,86.635,5.36086188]
[1771683723984,0.4944341,86.679,86.582,0.4790807]
[1771683724159,40.36070942,86.718,86.582,0.4790807]
[1771683724160,0.4944341,86.649,86.6,10.9620691]
[1771683724359,0.4944341,86.639,86.59,10.9620691]
[1771683724685,0.4944341,86.639,86.582,0.3619807]
[1771683724884,0.4944341,86.639,86.6,10.9620691]
[1771683725083,0.4944341,86.639,86.581,40.42457351]
[1771683725084,0.4944341,86.653,86.61,10.9620691]
[1771683725263,0.4944341,86.639,86.59,10.9620691]
[1771683725771,0.4944341,86.639,86.554,57.76727895]
[1771683725978,0.4944341,86.639,86.6,10.9620691]
[1771683726176,10.9620691,86.67,86.63,10.9620691]
[1771683726377,0.4944341,86.679,86.63,10.9620691]
[1771683726579,0.4944341,86.679,86.587,3.69383402]
[1771683726580,10.9620691,86.67,86.62,10.9620691]
[1771683726779,0.4944341,86.669,86.63,10.9620691]
[1771683726980,0.4944341,86.669,86.64,10.9620691]
[1771683727385,10.9620691,86.69,86.65,10.9620691]
[1771683727572,0.4944341,86.689,86.64,10.9620691]
[1771683727776,0.4944341,86.689,86.65,10.9620691]
[1771683727994,10.9620691,86.68,86.559,46.21090954]
[1771683728180,0.49105615,86.669,86.62,10.9620691]
[1771683728573,0.49105615,86.659,86.61,0.42032606]
[1771683728780,0.49105615,86.659,86.61,11.38239516]
[1771683729095,0.49105615,86.639,86.59,10.9620691]
[1771683729385,0.49105615,86.653,86.61,10.9620691]
[1771683729566,0.49105615,86.669,86.621,0.42355298]
[1771683729771,0.49105615,86.669,86.601,0.42355298]
[1771683730078,11.47157871,86.68,86.631,0.42757501]
[1771683730883,11.47157871,86.68,86.63,10.9620691]
[1771683731084,11.47157871,86.68,86.627,0.43155007]
[1771683731085,0.50950961,86.669,86.627,0.43155007]
[1771683731266,0.50950961,86.669,86.612,0.43155007]
[1771683731466,11.53548893,86.689,86.612,0.43155007]
[1771683731467,0.50950961,86.659,86.612,0.43155007]
[1771683731885,11.5396155,86.658,86.612,0.43155007]
[1771683732187,0.50950961,86.659,86.62,10.9620691]
[1771683732383,10.9620691,86.67,86.621,0.43548271]
[1771683732590,0.50950961,86.671,86.63,10.9620691]
[1771683732971,12.04574568,86.684,86.64,10.9620691]
[1771683733171,0.50950961,86.684,86.64,10.9620691]
[1771683733388,0.50950961,86.683,86.64,10.9620691]
[1771683734288,0.50950961,86.682,86.65,10.9620691]
[1771683734472,0.50950961,86.694,86.65,10.9620691]
[1771683735093,0.50950961,86.689,86.642,0.44320851]
[1771683735285,0.50950961,86.679,86.63,10.9620691]
[1771683735675,0.50950961,86.679,86.597,3.69383402]
[1771683735676,0.50950961,86.659,86.61,10.9620691]
[1771683735875,0.50950961,86.659,86.62,10.9620691]
[1771683736076,0.50950961,86.657,86.612,0.45075305]
[1771683736400,0.50950961,86.657,86.61,22.50796895]
[1771683736576,0.50950961,86.657,86.61,11.54589985]
[1771683736777,68.63219597,86.7,86.603,11.5468389]
[1771683736778,0.50950961,86.649,86.603,11.5468389]
[1771683737082,0.50950961,86.639,86.582,0.454461]
[1771683737387,11.5396155,86.658,86.59,10.9620691]
[1771683737388,0.50950961,86.629,86.59,10.9620691]
[1771683737588,0.50950961,86.629,86.58,10.9620691]
[1771683737791,40.38865425,86.658,86.56,10.9620691]
[1771683737792,0.50950961,86.609,86.56,10.9620691]
[1771683737983,0.50950961,86.599,86.546,0.45813071]
[1771683738298,0.50950961,86.589,86.55,10.9620691]
[1771683738603,0.50950961,86.601,86.56,10.9620691]
[1771683738983,0.50950961,86.599,86.55,0.45813071]
[1771683739182,0.50950961,86.599,86.55,11.42019981]
[1771683739384,0.50950961,86.589,86.54,10.9620691]
[1771683739789,0.50950961,86.602,86.551,0.46535547]
[1771683739991,0.50950961,86.598,86.56,10.9620691]
[1771683740294,0.50950961,86.598,86.57,10.9620691]
[1771683740477,28.85970138,86.626,86.57,10.9620691]
[1771683740478,11.47157871,86.61,86.57,10.9620691]
[1771683740678,0.50950961,86.61,86.561,0.28432314]
[1771683740874,0.50950961,86.61,86.57,10.9620691]
[1771683741096,0.50950961,86.61,86.58,10.9620691]
[1771683741279,0.50950961,86.61,86.57,10.9620691]
[1771683742002,0.50950961,86.61,86.538,57.77806449]
[1771683742003,0.50950961,86.669,86.601,0.47159304]
[1771683742175,0.50950961,86.669,86.613,0.47159304]
[1771683742376,0.50950961,86.669,86.62,10.9620691]
[1771683742695,10.9620691,86.65,86.6,10.9620691]
[1771683742881,0.50950961,86.639,86.59,10.9620691]
[1771683743198,0.50950961,86.629,86.581,11.54987814]
[1771683743392,0.50950961,86.619,86.573,11.55085214]
[1771683743904,3.69383402,86.662,86.566,11.55177691]
[1771683743905,0.50950961,86.607,86.566,11.55177691]
[1771683744103,0.50950961,86.607,86.551,11.55388152]
[1771683744305,0.50950961,86.607,86.56,10.9620691]
[1771683744990,0.50950961,86.599,86.56,10.9620691]
[1771683745301,0.50950961,86.589,86.551,11.55388152]
[1771683746184,0.50950961,86.588,86.551,11.55388152]
[1771683746386,0.50950961,86.607,86.56,10.9620691]
[1771683746608,0.50950961,86.606,86.57,10.9620691]
[1771683746986,0.50950961,86.606,86.56,10.9620691]
[1771683747401,0.50950961,86.599,86.552,0.47159304]
[1771683747594,0.50950961,86.599,86.57,10.9620691]
[1771683747792,0.50950961,86.599,86.551,11.55388152]
[1771683747793,0.50950961,86.609,86.563,0.47159304]
[1771683747995,0.50950961,86.609,86.56,10.9620691]
[1771683748301,0.50950961,86.607,86.562,0.47159304]
[1771683748692,10.9620691,86.6,86.561,11.55254675]
[1771683748900,0.50950961,86.599,86.561,11.55254675]
[1771683749288,0.50950961,86.599,86.555,0.47159304]
[1771683749485,0.50950961,86.599,86.554,11.55345799]
[1771683749486,0.50950961,86.599,86.561,0.47159304]
[1771683749708,0.50950961,86.599,86.554,11.55345799]
[1771683750100,0.50950961,86.599,86.56,10.9620691]
[1771683750295,12.0571204,86.598,86.554,11.55345799]
[1771683750503,0.50950961,86.597,86.554,11.55345799]
[1771683751096,0.50950961,86.589,86.554,11.55345799]
[1771683751496,0.50950961,86.619,86.57,10.9620691]
[1771683752115,0.50950961,86.619,86.58,10.9620691]
[1771683752496,0.50950961,86.617,86.58,10.9620691]
[1771683752713,11.54494446,86.618,86.56,0.47159304]
[1771683752714,0.50950961,86.609,86.57,10.9620691]
[1771683753916,10.9620691,86.6,86.555,11.55330752]
[1771683754208,0.50950961,86.589,86.555,11.55330752]
[1771683754617,0.50950961,86.579,86.54,10.9620691]
[1771683755014,0.50950961,86.579,86.537,11.55575071]
[1771683755309,0.50950961,86.569,86.531,11.55655198]
[1771683755613,0.50950961,86.559,86.52,10.9620691]
[1771683755823,0.50950961,86.548,86.511,11.55922368]
[1771683755997,0.50950961,86.548,86.511,40.45728288]
[1771683756489,0.50950961,86.548,86.511,11.55922368]
[1771683756693,57.74472213,86.588,86.52,10.9620691]
[1771683756923,0.50950961,86.579,86.53,10.9620691]
[1771683757217,0.50950961,86.569,86.53,10.9620691]
[1771683758799,3.69383402,86.621,86.52,0.47159304]
[1771683758800,0.53150379,86.581,86.55,10.9620691]
[1771683759114,0.53150379,86.599,86.56,10.9620691]
[1771683760215,0.53150379,86.599,86.57,10.9620691]
[1771683760812,0.53150379,86.597,86.56,10.9620691]
[1771683761023,0.53150379,86.597,86.561,11.55254675]
[1771683762320,0.53150379,86.597,86.556,11.55319552]
[1771683762522,0.53150379,86.597,86.56,10.9620691]
[1771683763115,0.53150379,86.595,86.56,10.9620691]
[1771683763417,0.53150379,86.595,86.521,57.78890024]
[1771683763418,0.53150379,86.589,86.54,10.9620691]
[1771683763614,0.53150379,86.589,86.533,11.55625502]
[1771683763615,0.53150379,86.579,86.533,11.55625502]
[1771683763916,0.53150379,86.579,86.54,10.9620691]
[1771683765224,0.53150379,86.577,86.541,11.5552166]
[1771683765428,0.53150379,86.577,86.55,10.9620691]
[1771683766619,57.73030789,86.61,86.541,11.5552166]
[1771683766620,0.53150379,86.608,86.542,0.51275217]
[1771683766804,0.53150379,86.589,86.541,11.5552166]
[1771683767220,0.53150379,86.587,86.54,10.9620691]